bitfinex/quotes_ETHUSD_20251127
["timestamp","ask_amount","ask_price","bid_price","bid_amount"]
[1764239729180,1.1905,3024.6,3024.5,0.001]
[1764239731392,1.49719998,3024.6,3024.5,0.001]
[1764239732921,1.49755889,3024.6,3024.5,0.001]
[1764239733893,0.51905889,3024.6,3024.5,0.001]
[1764239734423,1.49835889,3024.6,3024.5,0.001]
[1764239734791,0.30905889,3024.6,3024.5,0.001]
[1764239735010,1.1913,3024.6,3024.5,0.001]
[1764239738316,1.49846494,3024.6,3024.5,0.001]
[1764239738522,1.1913,3024.6,3024.5,0.001]
[1764239738723,1.28846473,3024.6,3024.5,0.001]
[1764239738899,0.212,3024.6,3024.5,0.001]
[1764239739123,0.7001,3024.6,3024.5,0.001]
[1764239739304,1.49848822,3024.6,3024.5,0.001]
[1764239744913,4.80471053,3024.6,3024.5,0.001]
[1764239745243,0.79728822,3024.6,3024.5,0.001]
[1764239745414,1.45778822,3024.6,3024.5,0.001]
[1764239748315,1.24878822,3024.6,3024.5,0.001]
[1764239748634,1.45778822,3024.6,3024.5,0.001]
[1764239752342,1.45860514,3024.6,3024.5,0.001]
[1764239753051,1.45780514,3024.6,3024.5,0.001]
[1764239754023,1.93418706,3024.6,3024.5,0.001]
[1764239754347,0.30920514,3024.6,3024.5,0.001]
[1764239754522,1.44700514,3024.6,3024.5,0.001]
[1764239758650,0.30920514,3024.6,3024.5,2.75825385]
[1764239758839,0.51820514,3024.6,3024.5,2.75825385]
[1764239759152,0.0012,3024.6,3024.5,6.64660581]
[1764239759364,0.0012,3024.6,3024.5,7.31126639]
[1764239759569,0.0012,3024.6,3024.5,10.61759801]
[1764239760844,0.002,3025.0,3024.6,1.13109811]
[1764239761048,0.002,3025.0,3024.9,3.88835196]
[1764239761673,0.002,3025.0,3024.9,7.19424636]
[1764239761858,0.002,3025.0,3024.9,5.08151313]
[1764239762876,0.002,3025.0,3024.9,7.83876698]
[1764239765744,0.002,3025.0,3024.9,7.11317287]
[1764239768845,0.002,3025.0,3024.9,4.35591902]
[1764239776774,0.0012,3025.0,3024.9,4.35591902]
[1764239780903,0.0012,3025.0,3024.9,4.76142302]
[1764239783504,0.0012,3025.0,3024.9,5.48701713]
[1764239784488,0.0012,3025.0,3024.9,5.48801713]
[1764239787675,0.0012,3025.0,3024.9,8.24527098]
[1764239790597,0.0012,3025.0,3024.9,8.43906197]
[1764239792134,0.002,3025.4,3024.9,8.43906197]
[1764239792135,0.002,3025.4,3025.0,1.13109811]
[1764239792424,0.002,3025.4,3025.3,4.08214295]
[1764239793421,0.002,3025.4,3025.3,7.38760026]
[1764239800504,0.0012,3025.4,3025.3,7.38760026]
[1764239807026,0.9665,3025.4,3025.3,7.38760026]
[1764239807431,0.0012,3025.4,3025.3,7.38760026]
[1764239807631,0.0012,3025.4,3025.3,8.60742464]
[1764239808056,0.9665,3025.4,3025.3,5.6563798]
[1764239808266,0.9665,3025.4,3025.3,8.60742464]
[1764239808732,0.4895,3025.4,3025.3,8.60742464]
[1764239808936,0.0012,3025.4,3025.3,8.60742464]
[1764239815034,0.0012,3025.4,3025.3,5.6563798]
[1764239815237,0.9665,3025.4,3025.3,8.60742464]
[1764239816067,0.4895,3025.4,3025.3,8.60742464]
[1764239820984,0.9665,3025.4,3025.3,7.38760026]
[1764239821285,0.9665,3025.4,3025.3,7.38860026]
[1764239824303,0.9657,3025.4,3025.3,7.38860026]
[1764239825691,0.9657,3025.4,3025.3,8.35430026]
[1764239828893,0.0004,3025.4,3025.3,8.35430026]
[1764239829097,0.0004,3025.4,3025.3,9.67079464]
[1764239834713,0.4688,3025.4,3025.3,9.67079464]
[1764239834916,0.0004,3025.4,3025.3,9.67079464]
[1764239835120,0.0004,3025.4,3025.3,13.47079464]
[1764239839223,0.0004,3025.4,3025.3,9.67079464]
[1764239846128,0.4688,3025.4,3025.3,9.67079464]
[1764239846333,0.9333,3025.4,3025.3,9.67079464]
[1764239846532,0.4688,3025.4,3025.3,9.67079464]
[1764239846834,0.0004,3025.4,3025.3,9.67079464]
[1764239848099,0.4641,3025.6,3025.5,0.405504]
[1764239848606,0.9325,3025.6,3025.5,0.869604]
[1764239849235,0.4684,3025.6,3025.5,0.869604]
[1764239849405,0.4684,3025.6,3025.5,2.1170692]
[1764239849912,0.4684,3025.6,3025.5,5.422308]
[1764239850116,0.4684,3025.6,3025.5,6.14790211]
[1764239850313,0.9329,3025.6,3025.5,6.14790211]
[1764239850536,0.002,3025.7,3025.6,1.13109811]
[1764239850820,0.002,3025.7,3025.6,2.95754542]
[1764239851220,0.002,3025.7,3025.6,3.08987459]
[1764239851539,1e-08,3025.8,3025.7,0.405504]
[1764239851718,1e-08,3025.8,3025.7,4.09309475]
[1764239852119,1e-08,3025.8,3025.7,7.39811507]
[1764239852423,1e-08,3025.8,3025.7,9.40613271]
[1764239853256,1e-08,3025.8,3025.7,12.15912935]
[1764239853624,1e-08,3025.8,3025.7,9.40613271]
[1764239853946,1e-08,3025.8,3025.7,12.15912935]
[1764239857151,1e-08,3025.8,3025.7,15.95912935]
[1764239857346,0.002,3026.2,3025.9,0.405504]
[1764239857549,0.002,3026.2,3026.0,6.63709139]
[1764239857846,0.002,3026.2,3026.0,7.68080053]
[1764239858047,0.002,3026.2,3026.0,7.81310344]
[1764239858350,0.002,3026.2,3026.0,11.1177961]
[1764239864158,0.002,3026.2,3026.0,5.61180282]
[1764239864339,0.002,3026.2,3026.0,11.1177961]
[1764239867477,0.9902,3026.1,3026.0,11.1177961]
[1764239867662,0.9902,3026.1,3026.0,10.07408696]
[1764239869281,0.9902,3026.1,3026.0,13.87408696]
[1764239871571,0.9902,3026.1,3026.0,10.07408696]
[1764239871777,0.9894,3026.1,3026.0,10.07408696]
[1764239873377,0.0012,3026.1,3026.0,10.07408696]
[1764239873567,0.0012,3026.1,3026.0,11.79197518]
[1764239879184,0.9894,3026.1,3026.0,11.79197518]
[1764239879785,0.0012,3026.1,3026.0,11.79197518]
[1764239880773,0.9894,3026.1,3026.0,11.79197518]
[1764239881396,0.4971,3026.1,3026.0,11.79197518]
[1764239881802,0.0012,3026.1,3026.0,11.79197518]
[1764239883098,0.9894,3026.1,3026.0,11.79197518]
[1764239888018,0.4971,3026.1,3026.0,11.79197518]
[1764239888231,0.989,3026.1,3026.0,11.79197518]
[1764239889487,0.4971,3026.1,3026.0,11.79197518]
[1764239889824,0.4899,3026.1,3026.0,11.79197518]
[1764239890620,0.4899,3026.1,3026.0,11.79297518]
[1764239891113,0.9617,3026.1,3026.0,11.79297518]
[1764239894225,0.0012,3026.1,3026.0,11.79297518]
[1764239895022,0.0012,3026.1,3026.0,15.59297518]
[1764239895535,0.0004,3026.1,3026.0,15.59297518]
[1764239896818,0.0004,3026.1,3026.0,11.79297518]
[1764239899729,0.967,3026.1,3026.0,11.79297518]
[1764239900413,0.0004,3026.1,3026.0,11.79297518]
[1764239902424,0.967,3026.1,3026.0,11.79297518]
[1764239902756,0.967,3026.1,3026.0,10.07508696]
[1764239907270,0.967,3026.1,3026.0,7.32209032]
[1764239909976,0.967,3026.1,3026.0,3.30569266]
[1764239910151,0.967,3026.1,3026.0,6.0586893]
[1764239910558,0.967,3026.1,3026.0,3.30569266]
[1764239911770,0.967,3026.1,3026.0,0.001]
[1764239918798,1.176,3026.1,3026.0,0.001]
[1764239919381,1.1752,3026.1,3026.0,0.001]
[1764239923394,1.1772,3026.1,3026.0,0.001]
[1764239925683,1.62576122,3026.1,3026.0,0.001]
[1764239925884,1.93351043,3026.1,3026.0,0.001]
[1764239927007,1.48494921,3026.1,3026.0,0.001]
[1764239928701,1.1772,3026.1,3026.0,0.001]
[1764239934122,1.1772,3026.1,3026.0,3.30569266]
[1764239939134,0.002,3026.1,3026.0,3.30569266]
[1764239939311,0.211,3026.1,3026.0,3.30569266]
[1764239939504,0.211,3026.1,3026.0,4.26177988]
[1764239939917,0.002,3026.1,3026.0,4.26177988]
[1764239940117,0.211,3026.1,3026.0,4.26177988]
[1764239940318,0.211,3026.1,3026.0,4.39410861]
[1764239940722,0.002,3026.1,3026.0,5.52520672]
[1764239941037,0.002,3026.1,3026.0,8.47559246]
[1764239943149,0.0012,3026.1,3026.0,8.47559246]
[1764239946121,0.0012,3026.1,3026.0,12.27559246]
[1764239947530,0.002,3026.2,3026.0,15.58028512]
[1764239947757,0.002,3026.2,3026.1,3.01960601]
[1764239949950,0.002,3026.2,3026.1,6.32418946]
[1764239950747,0.4076,3026.6,3026.1,12.93335636]
[1764239950959,0.002,3026.8,3026.6,0.405504]
[1764239951454,0.473,3026.7,3026.6,0.405504]
[1764239951652,0.473,3026.7,3026.6,0.76199297]
[1764239952051,0.002,3026.8,3026.6,4.0660305]
[1764239952449,0.002,3026.8,3026.6,7.37006803]
[1764239952958,0.473,3026.7,3026.6,4.0660305]
[1764239953660,0.9246,3026.7,3026.6,4.0660305]
[1764239953954,0.002,3026.8,3026.6,7.37006803]
[1764239954126,0.002,3026.8,3026.7,1.38335935]
[1764239954326,0.4536,3026.8,3026.7,1.38335935]
[1764239954556,0.9266,3026.8,3026.7,1.38335935]
[1764239956467,0.9266,3026.8,3026.7,4.68728772]
[1764239956677,0.9266,3026.8,3026.7,3.30392837]
[1764239962392,1.1356,3026.8,3026.7,3.30392837]
[1764239965367,1.1356,3026.8,3026.7,3.70943237]
[1764239966881,1.1348,3026.8,3026.7,3.70943237]
[1764239972613,1.1348,3026.8,3026.7,6.46166407]
[1764239973126,0.6832,3026.8,3026.7,7.79522971]
[1764239973411,0.2102,3026.8,3026.7,7.79522971]
[1764239973920,0.002,3027.2,3026.8,2.27667373]
[1764239974116,0.002,3027.2,3027.1,0.72559411]
[1764239974317,0.4805,3027.2,3027.1,3.88332981]
[1764239974629,0.9568,3027.2,3027.0,0.4805]
[1764239974785,0.4785,3027.1,3026.9,2.7522317]
[1764239974984,0.4763,3027.0,3026.9,3.47782581]
[1764239975434,0.9548,3027.0,3026.9,3.47782581]
[1764239976730,0.9548,3027.0,3026.9,6.78153587]
[1764239977233,1.1638,3027.0,3026.9,6.78153587]
[1764239978115,0.9548,3027.0,3026.9,6.78153587]
[1764239978421,1.1638,3027.0,3026.9,6.78153587]
[1764239979002,1.1638,3027.0,3026.9,4.02930417]
[1764239981624,0.6853,3027.0,3026.9,4.02930417]
[1764239982004,1.1404,3027.0,3026.9,4.02930417]
[1764239982601,0.209,3027.0,3026.9,4.02930417]
[1764239985006,0.209,3027.1,3026.9,7.33301423]
[1764239985208,0.209,3027.1,3027.0,2.7522317]
[1764239985406,0.4571,3027.2,3027.0,2.7522317]
[1764239985597,0.4528,3027.1,3027.0,2.7522317]
[1764239986098,0.9079,3027.1,3027.0,2.7522317]
[1764239987103,0.9079,3027.1,3027.0,6.05583262]
[1764239987441,0.209,3027.1,3027.0,6.05583262]
[1764239987796,1.1169,3027.1,3027.0,6.05583262]
[1764239988020,0.6618,3027.1,3027.0,6.05583262]
[1764239988227,1.1169,3027.1,3027.0,6.05583262]
[1764239989493,0.9079,3027.1,3027.0,6.05583262]
[1764239989696,1.1169,3027.1,3027.0,6.05583262]
[1764239990529,1.1161,3027.1,3027.0,6.05583262]
[1764239991236,1.1181,3027.1,3027.0,6.05583262]
[1764239993638,0.002,3027.1,3027.0,6.05583262]
[1764239993829,0.002,3027.1,3027.0,7.83011842]
[1764239995227,0.002,3027.1,3027.0,6.05583262]
[1764239995950,0.002,3027.1,3027.0,7.18693073]
[1764239996245,0.002,3027.2,3027.0,7.18693073]
[1764239996246,0.002,3027.2,3027.1,1.13109811]
[1764239996419,0.002,3027.2,3027.1,2.91183761]
[1764239996746,0.002,3027.2,3027.1,4.42741263]
[1764239996946,0.002,3027.2,3027.1,4.55965999]
[1764239998231,0.002,3027.2,3027.1,6.08241228]
[1764240000044,0.002,3027.6,3027.2,0.405504]
[1764240000250,0.002,3027.6,3027.5,6.23005751]
[1764240000446,0.002,3027.6,3027.5,7.51371797]
[1764240000626,0.002,3027.6,3027.5,7.91991797]
[1764240001630,0.9099,3027.6,3027.5,7.04176151]
[1764240002550,0.9099,3027.6,3027.5,9.93861683]
[1764240005681,0.002,3027.6,3027.5,9.93861683]
[1764240006027,0.002,3027.6,3027.5,10.84851683]
[1764240006527,0.002,3028.0,3027.6,1.13109811]
[1764240006734,0.4551,3028.4,3028.0,1.13109811]
[1764240006934,0.4551,3028.4,3028.2,5.5044634]
[1764240007341,0.4571,3028.7,3028.4,6.6041474]
[1764240007545,0.4571,3028.7,3028.6,2.7522317]
[1764240008031,0.9099,3028.7,3028.6,2.7522317]
[1764240009357,0.9099,3028.7,3028.6,6.05408734]
[1764240011262,0.9099,3028.7,3028.6,3.30185564]
[1764240011498,0.9099,3028.7,3028.6,6.05408734]
[1764240012965,0.9099,3028.7,3028.3,0.4551]
[1764240013151,0.9099,3028.7,3027.8,2.7522317]
[1764240013152,0.4934,3028.4,3027.8,2.7522317]
[1764240013355,6.60556902,3028.7,3027.8,2.7522317]
[1764240013356,0.6856,3027.9,3027.8,2.7522317]
[1764240013840,1.1674,3027.9,3027.8,2.7522317]
[1764240014338,1.1666,3027.9,3027.8,2.7522317]
[1764240015191,1.1666,3027.9,3027.7,3.30278181]
[1764240015379,0.4818,3027.8,3027.7,3.30278181]
[1764240015564,0.9752,3027.8,3027.7,3.30278181]
[1764240017387,1.1842,3027.8,3027.7,3.30278181]
[1764240018484,0.7024,3027.8,3027.7,3.30278181]
[1764240018660,1.1842,3027.8,3027.7,3.30278181]
[1764240020980,0.209,3027.9,3027.7,6.60561894]
[1764240021178,0.209,3028.0,3027.8,2.7522317]
[1764240021383,0.4818,3028.0,3027.9,2.7522317]
[1764240021890,0.9752,3028.0,3027.9,6.05485067]
[1764240024964,0.4934,3028.0,3027.9,6.05485067]
[1764240025171,0.209,3028.0,3027.9,6.05485067]
[1764240025496,0.209,3028.0,3027.9,7.47501627]
[1764240026993,0.209,3028.0,3027.9,7.47601627]
[1764240027204,0.211,3028.0,3027.9,7.47601627]
[1764240031004,0.4954,3028.0,3027.9,7.88152027]
[1764240031204,0.4954,3028.0,3027.9,10.63375197]
[1764240031404,0.002,3028.0,3027.9,8.36332027]
[1764240031773,0.002,3028.0,3027.9,11.11555197]
[1764240032698,0.002,3028.0,3027.9,8.55684494]
[1764240033593,0.002,3028.7,3028.0,0.405504]
[1764240033789,0.002,3028.7,3028.6,4.07685448]
[1764240034215,0.002,3028.7,3028.6,4.55865448]
[1764240035725,0.002,3028.7,3028.6,7.86051012]
[1764240038095,0.0012,3028.7,3028.6,7.86051012]
[1764240038296,0.4946,3028.7,3028.6,7.86051012]
[1764240038497,0.4946,3028.7,3028.6,8.97675686]
[1764240040591,0.0012,3028.7,3028.6,8.97675686]
[1764240041910,0.002,3029.1,3028.7,1.13109811]
[1764240042102,0.002,3029.1,3029.0,3.35126037]
[1764240042323,0.002,3029.1,3029.0,4.07685448]
[1764240042519,0.002,3029.1,3029.0,4.61673047]
[1764240043529,0.002,3029.1,3029.0,7.91815008]
[1764240046604,0.4691,3029.1,3029.0,7.91815008]
[1764240046803,0.9232,3029.1,3029.0,7.91815008]
[1764240049547,0.9232,3029.1,3029.0,4.15920426]
[1764240049849,0.9232,3029.1,3029.0,3.30141961]
[1764240061914,0.9224,3029.1,3029.0,3.30141961]
[1764240062841,0.9224,3029.1,3029.0,3.70692361]
[1764240062842,1.1314,3029.1,3029.0,3.70692361]
[1764240063146,1.1314,3029.1,3029.0,3.30141961]
[1764240071454,1.1314,3029.1,3028.9,6.60305349]
[1764240071652,0.9773,3029.0,3028.9,3.30152489]
[1764240073125,0.209,3029.0,3028.9,4.99219278]
[1764240074042,0.6952,3029.0,3028.9,4.99219278]
[1764240074223,1.1863,3029.0,3028.9,4.99219278]
[1764240074424,1.1863,3029.0,3028.9,3.30152489]
[1764240075725,0.209,3029.0,3028.9,3.33454017]
[1764240077041,0.0012,3029.1,3029.0,0.405504]
[1764240077244,0.0012,3029.1,3029.0,3.30141961]
[1764240077427,0.9785,3029.1,3029.0,6.24717598]
[1764240077734,0.9785,3029.1,3029.0,7.53230873]
[1764240077935,0.4874,3029.1,3029.0,7.53230873]
[1764240078138,0.9785,3029.1,3029.0,7.53230873]
[1764240081477,0.9785,3029.1,3029.0,7.53330873]
[1764240085241,0.0012,3029.1,3029.0,7.53330873]
[1764240085455,0.2102,3029.1,3029.0,7.53330873]
[1764240085662,0.2094,3029.1,3029.0,7.53330873]
[1764240087381,0.2094,3029.1,3029.0,8.66440684]
[1764240087382,0.0004,3029.1,3029.0,8.66440684]
[1764240089168,0.4866,3029.1,3029.0,8.66440684]
[1764240089574,0.0004,3029.1,3029.0,8.66440684]
[1764240090682,0.9777,3029.1,3029.0,8.66440684]
[1764240090981,0.9777,3029.1,3029.0,6.97377009]
[1764240092474,0.9777,3029.1,3029.0,6.24817598]
[1764240093055,0.4866,3029.1,3029.0,6.24817598]
[1764240094161,0.0004,3029.1,3029.0,6.24817598]
[1764240094564,0.0004,3029.1,3029.0,6.08310619]
[1764240096180,0.0004,3029.1,3029.0,6.050092]
[1764240096704,0.0004,3029.1,3029.0,6.08310619]
[1764240097001,0.0004,3029.1,3029.0,8.0321032]
[1764240097181,0.0004,3029.1,3029.0,7.99908901]
[1764240101096,0.0004,3029.1,3029.0,8.72468312]
[1764240109490,0.0016,3029.2,3029.1,0.72559411]
[1764240109802,0.0016,3029.2,3029.1,0.75860721]
[1764240110099,0.0016,3029.2,3029.1,4.05991783]
[1764240110286,0.0016,3029.2,3029.1,7.88672289]
[1764240110491,0.0016,3029.2,3029.1,5.1060374]
[1764240111282,0.0016,3029.2,3029.1,5.1390505]
[1764240112268,0.0016,3029.2,3029.1,5.1060374]
[1764240113880,0.0016,3029.2,3029.1,5.1390505]
[1764240114598,0.0016,3029.2,3029.1,5.1060374]
[1764240115502,0.0016,3029.2,3029.1,7.88672289]
[1764240115720,0.002,3029.4,3029.3,6.62644289]
[1764240115900,0.002,3029.4,3029.3,8.19478612]
[1764240116473,0.002,3029.4,3029.3,11.49587878]
[1764240117713,0.002,3029.5,3029.4,0.72559411]
[1764240119283,0.002,3029.5,3029.4,4.0265778]
[1764240123607,0.002,3029.5,3029.4,4.4320818]
[1764240123809,0.002,3029.8,3029.4,4.4320818]
[1764240123810,0.002,3029.8,3029.5,0.405504]
[1764240123986,0.002,3029.8,3029.7,3.8787705]
[1764240125492,0.002,3029.8,3029.7,3.91177706]
[1764240125918,0.002,3029.8,3029.7,7.21243389]
[1764240126089,0.002,3029.8,3029.7,7.17942733]
[1764240126284,0.002,3029.8,3029.7,8.50221388]
[1764240127989,0.002,3029.8,3029.7,8.97751388]
[1764240129015,0.002,3030.0,3029.7,12.27817071]
[1764240129217,0.002,3030.0,3029.9,6.62644289]
[1764240129420,0.002,3030.0,3029.9,5.38135481]
[1764240129591,0.9523,3030.0,3029.9,5.38135481]
[1764240129931,0.9523,3030.0,3029.9,5.51349208]
[1764240130324,0.9523,3030.0,3029.9,8.26116447]
[1764240130720,0.9523,3030.0,3029.9,8.81393103]
[1764240130894,0.9582,3030.0,3029.9,8.81393103]
[1764240131215,0.002,3030.0,3029.9,11.56160342]
[1764240132913,0.9634,3030.0,3029.9,11.56160342]
[1764240133121,0.9626,3030.0,3029.9,11.56160342]
[1764240133817,0.9626,3030.0,3029.9,8.81393103]
[1764240135917,0.4722,3030.0,3029.9,11.56160342]
[1764240136497,0.0012,3030.0,3029.9,11.56160342]
[1764240138728,0.4722,3030.0,3029.9,11.56160342]
[1764240138926,0.0012,3030.0,3029.9,11.56160342]
[1764240141419,0.4722,3030.0,3029.9,11.56160342]
[1764240141620,0.9626,3030.0,3029.9,8.81393103]
[1764240142226,0.9626,3030.0,3029.9,7.31134672]
[1764240143112,0.9626,3030.0,3029.9,6.90584272]
[1764240144949,0.9626,3030.0,3029.9,6.77370545]
[1764240145104,0.9626,3030.0,3029.9,6.04811134]
[1764240145308,0.9626,3030.0,3029.8,4.26311483]
[1764240145509,0.4904,3029.9,3029.8,3.30051483]
[1764240145709,1.1613,3029.9,3029.8,3.30051483]
[1764240146516,1.1613,3029.9,3029.4,0.72559411]
[1764240146517,1.1613,3029.9,3029.4,3.30090344]
[1764240146711,0.471,3029.5,3029.4,3.30090344]
[1764240147142,0.9614,3029.5,3029.4,3.30090344]
[1764240147323,0.9614,3029.5,3029.4,4.02649755]
[1764240147918,0.9614,3029.5,3029.4,6.77416994]
[1764240151019,0.9614,3029.5,3029.4,6.77516994]
[1764240153632,1.1694,3029.5,3029.4,6.77516994]
[1764240154530,1.1694,3029.5,3029.4,6.97110899]
[1764240155248,1.1694,3029.5,3029.4,6.24551488]
[1764240157046,1.1686,3029.5,3029.4,6.24551488]
[1764240158241,1.1686,3029.5,3029.4,3.30190344]
[1764240158559,1.1686,3029.5,3029.4,0.001]
[1764240158754,0.9606,3029.5,3029.4,3.30198369]
[1764240158948,1.1686,3029.5,3029.4,3.30198369]
[1764240159267,1.1686,3029.5,3029.4,0.001]
[1764240161152,1.61552633,3029.5,3029.4,0.001]
[1764240165864,1.1686,3029.5,3029.4,0.001]
[1764240166450,0.208,3029.5,3029.4,0.001]
[1764240166895,0.1999,3029.9,3029.4,0.001]
[1764240166896,0.6617,3029.9,3029.4,0.001]
[1764240167095,0.1999,3029.9,3029.8,2.94361144]
[1764240167397,0.4079,3029.9,3029.8,2.94361144]
[1764240167564,1.1461,3029.9,3029.8,2.94361144]
[1764240167755,1.3541,3029.9,3029.8,6.24415933]
[1764240168261,1.3561,3029.9,3029.8,6.24415933]
[1764240169585,0.8943,3029.9,3029.8,6.24415933]
[1764240169957,0.6863,3029.9,3029.8,6.24415933]
[1764240170157,0.21,3029.9,3029.8,6.72075267]
[1764240171357,0.002,3029.9,3029.8,6.72075267]
[1764240171957,1.147,3029.9,3029.8,0.47659334]
[1764240172160,1.147,3029.9,3029.8,3.30054789]
[1764240173370,1.45577068,3029.9,3029.8,3.30054789]
[1764240174160,1.45577068,3029.9,3029.7,6.60130631]
[1764240174356,0.9462,3029.8,3029.7,3.30064948]
[1764240175259,0.002,3029.9,3029.7,3.30064948]
[1764240175467,0.002,3030.2,3029.8,1.13109811]
[1764240175667,0.002,3030.2,3030.1,4.07470955]
[1764240176264,0.002,3030.2,3030.1,8.04473066]
[1764240176560,0.002,3030.2,3030.1,9.17923599]
[1764240180793,0.002,3030.4,3030.3,0.405504]
[1764240180992,0.1922,3031.2,3030.3,0.405504]
[1764240181203,0.1922,3031.2,3031.1,2.94361144]
[1764240181809,0.6766,3031.2,3031.1,2.94361144]
[1764240181993,0.208,3031.3,3031.1,3.40541144]
[1764240182673,0.1988,3031.4,3031.2,3.29902348]
[1764240182903,0.1988,3031.4,3031.2,6.59804696]
[1764240183068,0.9462,3031.3,3031.2,6.64813892]
[1764240183264,0.4844,3031.3,3031.2,6.64813892]
[1764240183499,0.1988,3031.4,3031.2,9.9471624]
[1764240183796,0.4844,3031.3,3031.2,6.64813892]
[1764240184195,0.6606,3031.4,3031.2,9.9471624]
[1764240184400,0.6606,3031.6,3031.2,13.24618588]
[1764240184595,0.6606,3031.6,3031.5,2.94361144]
[1764240184911,0.6606,3031.6,3031.5,6.24230845]
[1764240184912,0.1988,3031.6,3031.5,6.24230845]
[1764240185074,0.6832,3031.6,3031.5,6.24230845]
[1764240185272,1.145,3031.6,3031.5,6.90290845]
[1764240187576,1.145,3031.6,3031.5,6.24230845]
[1764240190279,1.145,3031.6,3031.5,2.94361144]
[1764240190478,1.145,3031.6,3031.5,6.24230845]
[1764240191100,1.353,3031.6,3031.5,6.24230845]
[1764240195103,1.1357,3031.6,3031.5,6.24230845]
[1764240198382,1.1357,3031.6,3031.5,2.94361144]
[1764240198613,1.1357,3031.6,3031.4,3.29880105]
[1764240198929,0.9277,3031.5,3031.4,3.29880105]
[1764240200526,0.9277,3031.5,3031.3,6.59781474]
[1764240200815,0.9277,3031.4,3031.3,4.0244942]
[1764240202883,0.4714,3031.4,3031.3,4.0244942]
[1764240203108,0.9277,3031.4,3031.3,4.0244942]
[1764240204511,0.9269,3031.4,3031.3,4.0244942]
[1764240204706,0.9269,3031.4,3031.3,3.29890009]
[1764240208224,0.6663,3031.6,3031.3,6.59781474]
[1764240208422,0.30881823,3031.5,3031.3,6.59781474]
[1764240208595,0.4563,3031.5,3031.3,6.59781474]
[1764240208796,0.4714,3031.4,3031.3,3.29890009]
[1764240209210,1.23676774,3031.4,3031.3,3.29890009]
[1764240209598,0.30906774,3031.4,3031.3,3.29890009]
[1764240209797,0.208,3031.4,3031.3,3.29890009]
[1764240210527,1.1357,3031.4,3031.3,3.29890009]
[1764240211228,1.4449313,3031.4,3031.3,3.29890009]
[1764240211926,0.208,3031.4,3031.3,3.33188923]
[1764240212122,0.002,3031.6,3031.3,7.58825527]
[1764240212426,0.208,3031.4,3031.3,4.25635148]
[1764240212628,0.002,3031.6,3031.3,7.58825527]
[1764240212827,0.51725921,3031.5,3031.3,7.55526613]
[1764240213031,0.002,3031.6,3031.3,7.55526613]
[1764240213195,0.51725917,3031.5,3031.3,7.55526613]
[1764240213399,0.208,3031.5,3031.4,2.94361144]
[1764240213623,0.51726288,3031.5,3031.4,2.94361144]
[1764240214424,0.51726288,3031.5,3031.4,6.24241727]
[1764240214631,0.51726288,3031.5,3031.4,6.04234038]
[1764240215808,0.51726288,3031.5,3031.2,3.29901321]
[1764240216012,0.208,3031.5,3031.4,2.74353455]
[1764240216229,0.51727023,3031.5,3031.4,2.74353455]
[1764240216730,0.30927023,3031.5,3031.4,2.74353455]
[1764240217301,0.21,3031.6,3031.4,2.74353455]
[1764240217702,0.21,3031.6,3031.5,3.29869701]
[1764240217901,0.51927451,3031.6,3031.5,3.29869701]
[1764240218117,0.21,3031.6,3031.5,3.29869701]
[1764240218422,0.5192794,3031.6,3031.5,3.29869701]
[1764240220932,0.3112794,3031.6,3031.5,3.29869701]
[1764240224936,0.21,3031.7,3031.5,12.42873658]
[1764240224937,0.002,3031.7,3031.5,12.42873658]
[1764240225137,0.002,3031.7,3031.6,4.89713973]
[1764240225439,0.002,3031.7,3031.6,5.65537216]
[1764240225824,0.002,3031.7,3031.6,6.13457216]
[1764240226335,0.002,3031.7,3031.6,4.35383266]
[1764240226639,0.002,3031.7,3031.6,6.32478269]
[1764240227024,0.002,3031.7,3031.6,9.62337089]
[1764240227224,0.1887,3032.6,3032.3,5.4870691]
[1764240227414,0.1887,3032.6,3032.5,2.74353455]
[1764240227835,1.1525,3032.6,3032.5,2.74353455]
[1764240228216,0.6725,3032.6,3032.5,2.74353455]
[1764240228417,1.1517,3032.6,3032.5,2.74353455]
[1764240229155,1.1517,3032.6,3032.5,6.04114378]
[1764240230544,0.208,3032.8,3032.5,9.82327859]
[1764240230732,0.4792,3033.0,3032.7,2.74353455]
[1764240230929,0.6872,3033.0,3032.9,2.74353455]
[1764240231238,0.78744137,3033.0,3032.9,6.04070887]
[1764240231543,0.9638,3033.0,3032.9,6.44621287]
[1764240232040,0.94023174,3033.8,3033.0,0.405504]
[1764240232218,0.51586321,3033.7,3033.0,1.13109811]
[1764240232416,0.208,3033.7,3033.0,1.13109811]
[1764240232610,0.6872,3033.7,3033.0,1.13109811]
[1764240232837,0.6872,3033.7,3033.2,0.405504]
[1764240233139,0.1988,3034.1,3033.2,0.405504]
[1764240233342,0.4792,3033.8,3033.4,0.405504]
[1764240234123,0.1988,3034.1,3033.4,0.405504]
[1764240234442,0.4792,3033.7,3033.4,0.405504]
[1764240235013,0.4846,3033.5,3033.4,0.405504]
[1764240235215,0.4846,3033.5,3033.4,3.70213484]
[1764240235514,0.4846,3033.5,3033.4,6.04016539]
[1764240235914,0.208,3034.0,3033.4,9.33679623]
[1764240236139,0.208,3034.0,3033.9,2.74353455]
[1764240236550,0.6926,3034.0,3033.9,2.74353455]
[1764240236726,1.1718,3034.0,3033.9,2.74353455]
[1764240237539,1.1718,3034.0,3033.7,2.74353455]
[1764240237718,0.4792,3033.9,3033.7,2.74353455]
[1764240237924,0.4846,3033.8,3033.7,2.74353455]
[1764240238536,0.9638,3033.8,3033.7,2.74353455]
[1764240239545,0.9638,3033.8,3033.7,6.03983939]
[1764240239923,0.9638,3033.8,3033.3,0.405504]
[1764240240123,0.4792,3033.8,3033.6,2.74353455]
[1764240240427,0.678,3034.1,3033.6,2.74353455]
[1764240240627,0.678,3034.1,3034.0,2.74353455]
[1764240240828,1.3706,3034.1,3034.0,2.74353455]